lending/lending_fUSD_20250224
["ID","MTS","AMOUNT","RATE_DAILY","PERIOD"]
[354289427,1740394231879,-693.28488955,0.00015938,2]
[354289428,1740394231888,-1275.0,0.00015939,2]
[354289429,1740394231897,-2028.0,0.00015939,2]
[354289430,1740394231906,-646.904,0.00015939,2]
[354289431,1740394231915,-278.834,0.00015939,2]
[354289432,1740394231924,-1789.0,0.00015939,2]
[354289433,1740394231934,-592.111,0.00015939,2]
[354289434,1740394231943,-1111.0,0.00015939,2]
[354289436,1740394231952,-784.0,0.00015939,2]
[354289437,1740394231961,-907.0,0.00015939,2]
[354289439,1740394231970,-1267.0,0.00015939,2]
[354289441,1740394231979,-540.0,0.00015939,2]
[354289443,1740394231988,-1424.0,0.00015939,2]
[354289445,1740394231997,-4033.0,0.00015939,2]
[354289447,1740394232007,-150.0,0.00015939,2]
[354289449,1740394232016,-3921.0,0.00015939,2]
[354289451,1740394232026,-470.94570335,0.00016064,2]
[354289453,1740394232035,-185.9,0.00016068,2]
[354289455,1740394232044,-1060.55832472,0.00016109,2]
[354289456,1740394232053,-1082.24349472,0.00016109,2]
[354289457,1740394232062,-1000.0,0.00016164,6]
[354289458,1740394232072,-250.41698298,0.00016178,2]
[354289459,1740394232081,-540.7471,0.00016338,2]
[354289460,1740394232090,-1106.7446,0.00016338,2]
[354289461,1740394232099,-345.11914898,0.00016354,2]
[354289462,1740394232108,-156.374567,0.00016438,2]
[354289463,1740394232117,-501.43757154,0.00016438,2]
[354289464,1740394232126,-164.642588,0.00016438,2]
[354289465,1740394232135,-277.598696,0.00016438,2]
[354289467,1740394232144,-175.888364,0.00016438,2]
[354289469,1740394232154,-158.723038,0.00016438,2]
[354289470,1740394232163,-500.0,0.00016438,2]
[354289472,1740394232172,-500.0,0.00016438,2]
[354289474,1740394232181,-354.55093417,0.00016438,2]
[354289476,1740394232190,-500.0,0.00016438,2]
[354289478,1740394232200,-500.0,0.00016438,2]
[354289480,1740394232209,-500.0,0.00016438,2]
[354289482,1740394232218,-500.0,0.00016438,2]
[354289483,1740394232227,-500.0,0.00016438,2]
[354289485,1740394232240,-500.0,0.00016438,2]
[354289487,1740394232249,-500.0,0.00016438,2]
[354289489,1740394232260,-242.69715916,0.00016438,2]
[354289491,1740394232269,-500.0,0.00016438,2]
[354289493,1740394232278,-500.0,0.00016438,2]
[354289495,1740394232287,-500.0,0.00016438,2]
[354289497,1740394232296,-500.0,0.00016438,2]
[354289499,1740394232306,-152.81,0.00016438,2]
[354289501,1740394232315,-500.0,0.00016438,2]
[354289502,1740394232324,-508.44812438,0.00016438,2]
[354289503,1740394232334,-459.1,0.00016438,2]
[354289505,1740394232343,-500.0,0.00016438,2]
[354289507,1740394232352,-500.0,0.00016438,2]
[354289509,1740394232361,-500.0,0.00016438,2]
[354289510,1740394232371,-500.0,0.00016438,2]
[354289511,1740394232381,-500.0,0.00016438,2]
[354289512,1740394232390,-216.99,0.00016438,2]
[354289513,1740394232399,-500.0,0.00016438,2]
[354289514,1740394232409,-158.776428,0.00016438,2]
[354289515,1740394232418,-1000.0,0.00016438,6]
[354289516,1740394232426,-500.0,0.00016438,2]
[354289517,1740394232435,-505.46886975,0.00016438,2]
[354289518,1740394232445,-500.0,0.00016438,2]
[354289519,1740394232454,-500.0,0.00016438,2]
[354289520,1740394232463,-500.0,0.00016438,2]
[354289521,1740394232472,-500.0,0.00016438,2]
[354289522,1740394232481,-500.0,0.00016438,2]
[354289523,1740394232491,-500.0,0.00016438,2]
[354289524,1740394232500,-500.0,0.00016438,2]
[354289525,1740394232511,-500.0,0.00016438,2]
[354289526,1740394232521,-500.0,0.00016438,2]
[354289527,1740394232530,-500.0,0.00016438,2]
[354289528,1740394232540,-500.0,0.00016438,2]
[354289529,1740394232705,-500.0,0.00016438,2]
[354289530,1740394232716,-492.99,0.00016438,2]
[354289531,1740394232726,-500.0,0.00016438,2]
[354289532,1740394232735,-500.0,0.00016438,2]
[354289533,1740394232745,-500.0,0.00016438,2]
[354289534,1740394232754,-500.0,0.00016438,2]
[354289535,1740394232764,-500.0,0.00016438,2]
[354289536,1740394232773,-500.0,0.00016438,2]
[354289537,1740394232782,-510.14238067,0.00016438,2]
[354289538,1740394232791,-508.09475807,0.00016438,2]
[354289539,1740394232800,-500.0,0.00016438,2]
[354289540,1740394232809,-500.0,0.00016438,2]
[354289541,1740394232818,-500.0,0.00016438,2]
[354289542,1740394232827,-500.0,0.00016438,2]
[354289543,1740394232836,-500.0,0.00016438,2]
[354289544,1740394232846,-500.0,0.00016438,2]
[354289545,1740394232855,-500.0,0.00016438,2]
[354289546,1740394232864,-500.0,0.00016438,2]
[354289547,1740394232875,-503.00666311,0.00016438,2]
[354289548,1740394232885,-500.0,0.00016438,2]
[354289549,1740394232894,-500.0,0.00016438,2]
[354289550,1740394232903,-500.0,0.00016438,2]
[354289551,1740394232913,-636.40822888,0.00016438,2]
[354289552,1740394232923,-500.0,0.00016438,2]
[354289553,1740394232932,-500.0,0.00016438,2]
[354289554,1740394232943,-500.0,0.00016438,2]
[354289555,1740394232955,-500.0,0.00016438,2]
[354289556,1740394232965,-500.0,0.00016438,2]
[354289557,1740394232974,-508.81582952,0.00016438,2]
[354289558,1740394232985,-500.0,0.00016438,2]
[354289559,1740394232994,-500.0,0.00016438,2]
[354289560,1740394233003,-502.52453299,0.00016438,2]
[354289561,1740394233016,-504.05239717,0.00016438,2]
[354289562,1740394233026,-503.14194142,0.00016438,2]
[354289563,1740394233036,-505.2706317,0.00016438,2]
[354289564,1740394233046,-500.0,0.00016438,2]
[354289565,1740394233057,-503.60544413,0.00016438,2]
[354289566,1740394233068,-500.0,0.00016438,2]
[354289567,1740394233079,-500.0,0.00016438,2]
[354289568,1740394233089,-501.87122364,0.00016438,2]
[354289569,1740394233099,-302.18484308,0.00016438,2]
[354289570,1740394233109,-500.0,0.00016438,2]
[354289571,1740394233119,-416.22443082,0.00016438,2]
[354289572,1740394233129,-502.33779181,0.00016438,2]
[354289573,1740394233139,-510.76821501,0.00016438,2]
[354289574,1740394233150,-500.0,0.00016438,2]
[354289575,1740394233161,-552.80768524,0.00016438,2]
[354289576,1740394233171,-502.85630333,0.00016438,2]
[354289577,1740394233181,-503.71660003,0.00016438,2]
[354289578,1740394233190,-503.51119774,0.00016438,2]
[354289579,1740394233199,-229.84211663,0.00016438,2]
[354289580,1740394233209,-501.37987202,0.00016438,2]
[354289581,1740394233218,-500.0,0.00016438,2]
[354289582,1740394233232,-505.02518985,0.00016438,2]
[354289583,1740394233246,-502.89372795,0.00016438,2]
[354289584,1740394233257,-501.50543049,0.00016438,2]
[354289585,1740394233268,-503.51605891,0.00016438,2]
[354289586,1740394233279,-503.27007967,0.00016438,2]
[354289587,1740394233289,-500.0,0.00016438,2]
[354289588,1740394233299,-503.06194081,0.00016438,2]
[354289589,1740394233309,-500.0,0.00016438,2]
[354289590,1740394233320,-500.0,0.00016438,2]
[354289591,1740394233330,-502.14762497,0.00016438,2]
[354289592,1740394233340,-500.0,0.00016438,2]
[354289593,1740394233350,-502.65049066,0.00016438,2]
[354289594,1740394233359,-502.09387608,0.00016438,2]
[354289595,1740394233369,-504.73183003,0.00016438,2]
[354289596,1740394233379,-500.0,0.00016438,2]
[354289597,1740394233389,-504.98567738,0.00016438,2]
[354289598,1740394233398,-505.6587528,0.00016438,2]
[354289599,1740394233408,-500.0,0.00016438,2]
[354289600,1740394233418,-257.30123694,0.00016438,2]
[354289601,1740394233428,-994.83,0.00016438,2]
[354289602,1740394233438,-151.38,0.00016438,2]
[354289603,1740394233448,-64670.75256044,0.00016438,2]
[354289604,1740394233457,-2200.0,0.00016454,2]
[354289605,1740394233467,-1200.0,0.00016454,2]
[354289606,1740394233476,-3000.0,0.00016454,2]
[354289607,1740394233486,-500.0,0.0001652,2]
[354289608,1740394233496,-553.64331468,0.0001652,2]
[354289609,1740394233507,-500.0,0.0001652,2]
[354289610,1740394233518,-500.0,0.0001652,2]
[354289611,1740394233527,-500.0,0.0001652,2]
[354289612,1740394233539,-500.0,0.0001652,2]
[354289613,1740394233549,-500.0,0.0001652,2]
[354289614,1740394233560,-164.642588,0.00016573,2]
[354289615,1740394233569,-175.888364,0.00016573,2]
[354289616,1740394233579,-832.2,0.000166,2]
[354289617,1740394233589,-999.51,0.00016602,2]
[354289618,1740394233599,-500.0,0.00016602,2]
[354289619,1740394233608,-500.0,0.00016602,2]
[354289620,1740394233617,-500.0,0.00016602,2]
[354289621,1740394233627,-500.0,0.00016602,2]
[354289622,1740394233637,-281.17326028,0.00016602,2]
[354289623,1740394233647,-500.0,0.00016602,2]
[354289624,1740394233656,-1000.0,0.00016684,2]
[354289625,1740394233666,-1000.0,0.00016684,2]
[354289626,1740394233675,-356.99413995,0.00016684,2]
[354289627,1740394233683,-500.0,0.00016684,2]
[354289628,1740394233692,-500.0,0.00016684,2]
[354289629,1740394233702,-500.0,0.00016684,2]
[354289630,1740394233711,-500.0,0.00016684,2]
[354289631,1740394233720,-500.0,0.00016684,2]
[354289632,1740394233730,-1000.0,0.00016712,6]
[354289633,1740394233739,-1000.0,0.00016731,2]
[354289634,1740394233749,-1000.0,0.00016749,2]
[354289635,1740394233760,-1113.81499936,0.00016753,2]
[354289636,1740394233769,-500.0,0.00016767,2]
[354289637,1740394233779,-500.0,0.00016767,2]
[354289638,1740394233788,-500.0,0.00016767,2]
[354289639,1740394233797,-500.0,0.00016767,2]
[354289640,1740394233806,-587.01641893,0.00016767,2]
[354289641,1740394233815,-1012.63,0.00016767,2]
[354289642,1740394233825,-3180.862,0.00016801,2]
[354289643,1740394233835,-190.103,0.00016801,2]
[354289644,1740394233844,-345.11914894,0.00016802,2]
[354289645,1740394233855,-500.0,0.00016849,2]
[354289646,1740394233865,-507.19652104,0.00016849,2]
[354289647,1740394233874,-500.0,0.00016849,2]
[354289648,1740394233884,-489.1334957,0.00016849,2]
[354289649,1740394233895,-205.28891337,0.000169,2]
[354289650,1740394233905,-285.44,0.00016919,2]
[354289651,1740394233914,-500.0,0.00016928,2]
[354289652,1740394233924,-500.0,0.00016928,2]
[354289653,1740394233933,-500.0,0.00016928,2]
[354289654,1740394233944,-500.0,0.00016928,2]
[354289655,1740394233953,-500.0,0.00016928,2]
[354289656,1740394233964,-500.0,0.00016928,2]
[354289657,1740394233979,-500.0,0.00016928,2]
[354289658,1740394233989,-1268.62,0.00016928,2]
[354289659,1740394233999,-500.0,0.00016928,2]
[354289660,1740394234011,-500.0,0.00016928,2]
[354289661,1740394234021,-500.0,0.00016928,2]
[354289662,1740394234031,-500.0,0.00016928,2]
[354289663,1740394234040,-500.0,0.00016928,2]
[354289664,1740394234050,-641.92567409,0.00016928,2]
[354289665,1740394234059,-500.0,0.00016928,2]
[354289666,1740394234069,-1024.11,0.00016928,2]
[354289667,1740394234078,-500.0,0.00016928,2]
[354289668,1740394234087,-500.0,0.00016928,2]
[354289669,1740394234097,-500.0,0.00016928,2]
[354289670,1740394234106,-789.22,0.00016928,2]
[354289671,1740394234115,-500.0,0.00016928,2]
[354289672,1740394234125,-500.0,0.00016928,2]
[354289673,1740394234134,-500.0,0.00016928,2]
[354289674,1740394234143,-604.22,0.00016928,2]
[354289675,1740394234154,-500.0,0.00016928,2]
[354289676,1740394234164,-500.0,0.00016928,2]
[354289677,1740394234173,-500.0,0.00016928,2]
[354289678,1740394234182,-500.0,0.00016928,2]
[354289679,1740394234192,-500.0,0.00016928,2]
[354289680,1740394234202,-500.0,0.00016928,2]
[354289681,1740394234212,-500.0,0.00016928,2]
[354289682,1740394234221,-500.0,0.00016928,2]
[354289683,1740394234231,-500.0,0.00016928,2]
[354289684,1740394234243,-500.0,0.00016928,2]
[354289685,1740394234252,-535.85,0.00016928,2]
[354289686,1740394234263,-500.0,0.00016928,2]
[354289687,1740394234272,-500.0,0.00016928,2]
[354289688,1740394234283,-500.0,0.00016928,2]
[354289689,1740394234292,-500.0,0.00016928,2]
[354289690,1740394234302,-503.03624236,0.00016929,2]
[354289691,1740394234312,-507.94241288,0.00016929,2]
[354289692,1740394234321,-500.0,0.00016929,2]
[354289693,1740394234331,-513.19233818,0.00016929,2]
[354289694,1740394234340,-500.0,0.00016929,2]
[354289695,1740394234350,-500.0,0.00016929,2]
[354289696,1740394234361,-500.0,0.00016929,2]
[354289697,1740394234371,-509.82534338,0.00016929,2]
[354289698,1740394234382,-500.0,0.00016929,2]
[354289699,1740394234392,-508.8531104,0.00016929,2]
[354289700,1740394234403,-503.31836679,0.00016929,2]
[354289701,1740394234413,-512.00780746,0.00016929,2]
[354289702,1740394234423,-500.0,0.00016929,2]
[354289703,1740394234432,-500.0,0.00016929,2]
[354289704,1740394234442,-500.0,0.00016929,2]
[354289705,1740394234451,-500.0,0.00016929,2]
[354289706,1740394234461,-500.0,0.00016929,2]
[354289707,1740394234471,-500.0,0.00016929,2]
[354289708,1740394234480,-500.0,0.00016929,2]
[354289709,1740394234489,-500.0,0.00016929,2]
[354289710,1740394234499,-500.0,0.00016929,2]
[354289711,1740394234509,-500.0,0.00016929,2]
[354289712,1740394234519,-294.30246093,0.00016929,2]
[354289713,1740394234528,-500.0,0.00016929,2]
[354289714,1740394234538,-723.13,0.00016929,2]
[354289715,1740394234547,-500.0,0.00016929,2]
[354289716,1740394234556,-3258.84,0.00016929,2]
[354289717,1740394234565,-273.67914232,0.00016929,2]
[354289718,1740394234574,-3547.8,0.00016929,2]
[354289719,1740394234583,-500.0,0.00016929,2]
[354289720,1740394234593,-491.60588694,0.00016929,2]
[354289721,1740394234602,-500.0,0.00016931,2]
[354289722,1740394234612,-500.0,0.00016931,2]
[354289723,1740394234621,-151.9,0.00016938,2]
[354289724,1740394234630,-892.53936215,0.00017,90]
[354289725,1740394234639,-500.0,0.0001701,2]
[354289726,1740394234649,-1268.62,0.0001701,2]
[354289727,1740394234659,-500.0,0.0001701,2]
[354289728,1740394234669,-1024.11,0.0001701,2]
[354289729,1740394234678,-789.22,0.0001701,2]
[354289730,1740394234688,-500.0,0.0001701,2]
[354289731,1740394234697,-500.0,0.0001701,2]
[354289732,1740394234706,-162.57530478,0.0001701,2]
[354289733,1740394234716,-500.0,0.00017012,2]
[354289734,1740394234725,-500.0,0.00017012,2]
[354289735,1740394234735,-500.0,0.00017012,2]
[354289736,1740394234744,-1308.37,0.00017012,2]
[354289737,1740394234753,-500.0,0.00017012,2]
[354289738,1740394234764,-583.9,0.00017012,2]
[354289739,1740394234773,-430.93223583,0.00017012,2]
[354289740,1740394234782,-500.0,0.00017012,2]
[354289741,1740394234791,-501.63531901,0.00017012,2]
[354289742,1740394234801,-509.35323872,0.00017012,2]
[354289743,1740394234810,-505.79422418,0.00017012,2]
[354289744,1740394234819,-581.36,0.00017012,2]
[354289745,1740394234828,-504.75382064,0.00017012,2]
[354289746,1740394234837,-2354.29,0.00017012,2]
[354289747,1740394234846,-643.37,0.00017012,2]
[354289748,1740394234856,-500.0,0.00017012,2]
[354289749,1740394234865,-500.0,0.00017012,2]
[354289750,1740394234874,-500.0,0.00017012,2]
[354289751,1740394234883,-500.0,0.00017012,2]
[354289752,1740394234893,-500.0,0.00017012,2]
[354289753,1740394234902,-500.0,0.00017012,2]
[354289754,1740394234911,-657.55,0.00017012,2]
[354289755,1740394234920,-723.13,0.00017012,2]
[354289756,1740394234929,-500.0,0.00017012,2]
[354289757,1740394234938,-547.1,0.00017012,2]
[354289758,1740394234948,-500.0,0.00017012,2]
[354289759,1740394234957,-500.0,0.00017012,2]
[354289760,1740394234966,-320.51264899,0.00017012,2]
[354289761,1740394234975,-500.0,0.00017012,2]
[354289762,1740394234984,-500.0,0.00017012,2]
[354289763,1740394234994,-609.27,0.00017012,2]
[354289764,1740394235003,-644.77,0.00017012,2]
[354289765,1740394235013,-3258.84,0.00017012,2]
[354289766,1740394235022,-500.0,0.00017012,2]
[354289767,1740394235031,-606.87,0.00017012,2]
[354289768,1740394235041,-500.0,0.00017012,2]
[354289769,1740394235050,-500.0,0.00017012,2]
[354289770,1740394235059,-371.58366321,0.00017012,2]
[354289771,1740394235068,-500.0,0.00017012,2]
[354289772,1740394235078,-500.0,0.00017013,2]
[354289773,1740394235086,-500.0,0.00017013,2]
[354289774,1740394235096,-695.4614,0.00017076,2]
[354289775,1740394235105,-500.0,0.00017093,2]
[354289776,1740394235114,-1268.62,0.00017093,2]
[354289777,1740394235123,-500.0,0.00017093,2]
[354289778,1740394235133,-1024.11,0.00017093,2]
[354289779,1740394235142,-789.22,0.00017093,2]
[354289780,1740394235151,-500.0,0.00017093,2]
[354289781,1740394235160,-578.36349609,0.00017093,2]
[354289782,1740394235169,-500.0,0.00017094,2]
[354289783,1740394235178,-500.0,0.00017094,2]
[354289784,1740394235187,-500.0,0.00017094,2]
[354289785,1740394235196,-1308.37,0.00017094,2]
[354289786,1740394235205,-500.0,0.00017094,2]
[354289787,1740394235214,-583.9,0.00017094,2]
[354289788,1740394235223,-581.36,0.00017094,2]
[354289789,1740394235233,-2354.29,0.00017094,2]
[354289790,1740394235245,-447.44,0.00017094,2]
[354289791,1740394235253,-500.0,0.00017094,2]
[354289792,1740394235264,-500.0,0.00017094,2]
[354289793,1740394235273,-657.55,0.00017094,2]
[354289794,1740394235282,-723.13,0.00017094,2]
[354289795,1740394235291,-3258.84,0.00017094,2]
[354289796,1740394235300,-500.0,0.00017094,2]
[354289797,1740394235309,-505.30467717,0.00017094,2]
[354289798,1740394235318,-500.0,0.00017095,2]
[354289799,1740394235327,-500.0,0.00017095,2]
[354289800,1740394235336,-500.0,0.00017175,2]
[354289801,1740394235345,-1268.62,0.00017175,2]
[354289802,1740394235354,-500.0,0.00017175,2]
[354289803,1740394235363,-1024.11,0.00017175,2]
[354289804,1740394235372,-789.22,0.00017175,2]
[354289805,1740394235381,-500.0,0.00017175,2]
[354289806,1740394235390,-296.95860953,0.00017176,2]
[354289807,1740394235399,-500.0,0.00017176,2]
[354289808,1740394235409,-500.0,0.00017176,2]
[354289809,1740394235418,-1308.37,0.00017176,2]
[354289810,1740394235427,-500.0,0.00017176,2]
[354289811,1740394235436,-583.9,0.00017176,2]
[354289812,1740394235445,-581.36,0.00017176,2]
[354289813,1740394235455,-2354.29,0.00017176,2]
[354289814,1740394235464,-500.0,0.00017176,2]
[354289815,1740394235473,-500.0,0.00017176,2]
[354289816,1740394235482,-657.55,0.00017176,2]
[354289817,1740394235490,-723.13,0.00017176,2]
[354289818,1740394235499,-3258.84,0.00017176,2]
[354289819,1740394235508,-500.0,0.00017176,2]
[354289820,1740394235517,-500.0,0.00017178,2]
[354289821,1740394235527,-500.0,0.00017178,2]
[354289822,1740394235537,-1014.63,0.00017178,2]
[354289823,1740394235546,-720.88456663,0.00017241,2]
[354289824,1740394235555,-345.11914894,0.00017251,2]
[354289825,1740394235564,-500.0,0.00017257,2]
[354289826,1740394235574,-1268.62,0.00017257,2]
[354289827,1740394235583,-500.0,0.00017257,2]
[354289828,1740394235592,-1024.11,0.00017257,2]
[354289829,1740394235601,-789.22,0.00017257,2]
[354289830,1740394235610,-500.0,0.00017257,2]
[354289831,1740394235619,-500.0,0.00017258,2]
[354289832,1740394235629,-723.13,0.00017258,2]
[354289833,1740394235638,-3258.84,0.00017258,2]
[354289834,1740394235647,-1848.0,0.00017259,2]
[354289835,1740394235656,-500.0,0.00017259,2]
[354289836,1740394235665,-500.0,0.00017259,2]
[354289837,1740394235674,-1308.37,0.00017259,2]
[354289838,1740394235684,-500.0,0.00017259,2]
[354289839,1740394235693,-583.9,0.00017259,2]
[354289840,1740394235701,-581.36,0.00017259,2]
[354289841,1740394235710,-2354.29,0.00017259,2]
[354289842,1740394235719,-500.0,0.00017259,2]
[354289843,1740394235728,-657.55,0.00017259,2]
[354289844,1740394235737,-500.0,0.00017259,2]
[354289845,1740394235746,-500.0,0.0001726,2]
[354289846,1740394235755,-428.58386849,0.0001726,2]
[354289847,1740394235765,-152.7,0.00017267,2]
[354289848,1740394235773,-499.34572062,0.00017339,2]
[354289849,1740394235782,-1268.62,0.00017339,2]
[354289850,1740394235791,-519.47351331,0.00017339,2]
[354289851,1740394235800,-1024.11,0.00017339,2]
[354289852,1740394235809,-789.22,0.00017339,2]
[354289853,1740394235817,-527.04128364,0.00017339,2]
[354289854,1740394235827,-500.0,0.0001734,2]
[354289855,1740394235835,-723.13,0.0001734,2]
[354289856,1740394235844,-3258.84,0.0001734,2]
[354289857,1740394235854,-500.0,0.00017341,2]
[354289858,1740394235863,-500.0,0.00017341,2]
[354289859,1740394235872,-1308.37,0.00017341,2]
[354289860,1740394235881,-500.0,0.00017341,2]
[354289861,1740394235890,-583.9,0.00017341,2]
[354289862,1740394235898,-581.36,0.00017341,2]
[354289863,1740394235908,-2354.29,0.00017341,2]
[354289864,1740394235917,-500.0,0.00017341,2]
[354289865,1740394235926,-657.55,0.00017341,2]
[354289866,1740394235935,-500.0,0.00017341,2]
[354289867,1740394235944,-500.0,0.00017342,2]
[354289868,1740394235953,-1268.62,0.00017421,2]
[354289869,1740394235962,-1024.11,0.00017421,2]
[354289870,1740394235971,-789.22,0.00017421,2]
[354289871,1740394235980,-500.0,0.00017423,2]
[354289872,1740394235989,-500.0,0.00017423,2]
[354289873,1740394235998,-1308.37,0.00017423,2]
[354289874,1740394236008,-500.0,0.00017423,2]
[354289875,1740394236017,-583.9,0.00017423,2]
[354289876,1740394236026,-581.36,0.00017423,2]
[354289877,1740394236035,-2354.29,0.00017423,2]
[354289878,1740394236044,-500.0,0.00017423,2]
[354289879,1740394236054,-500.0,0.00017423,2]
[354289880,1740394236063,-657.55,0.00017423,2]
[354289881,1740394236072,-723.13,0.00017423,2]
[354289882,1740394236081,-3258.84,0.00017423,2]
[354289883,1740394236090,-500.0,0.00017423,2]
[354289884,1740394236098,-500.0,0.00017424,2]
[354289885,1740394236108,-302.16779834,0.00017487,2]
[354289886,1740394236117,-1268.62,0.00017504,2]
[354289887,1740394236125,-1024.11,0.00017504,2]
[354289888,1740394236134,-789.22,0.00017504,2]
[354289889,1740394236143,-215.73915273,0.00017505,2]
[354289890,1740394236152,-500.0,0.00017505,2]
[354289891,1740394236160,-1308.37,0.00017505,2]
[354289892,1740394236169,-500.0,0.00017505,2]
[354289893,1740394236178,-583.9,0.00017505,2]
[354289894,1740394236187,-581.36,0.00017505,2]
[354289895,1740394236196,-2354.29,0.00017505,2]
[354289896,1740394236205,-500.0,0.00017505,2]
[354289897,1740394236214,-500.0,0.00017505,2]
[354289898,1740394236223,-657.55,0.00017505,2]
[354289899,1740394236238,-723.13,0.00017505,2]
[354289900,1740394236247,-3258.84,0.00017505,2]
[354289901,1740394236256,-500.0,0.00017505,2]
[354289902,1740394236266,-240.37361655,0.00017506,2]
[354289903,1740394236275,-500.0,0.00017542,2]
[354289904,1740394236285,-200.0,0.00017542,2]
[354289905,1740394236294,-1135.50709612,0.00017559,2]
[354289906,1740394236303,-1268.62,0.00017586,2]
[354289907,1740394236313,-1024.11,0.00017586,2]
[354289908,1740394236323,-789.22,0.00017586,2]
[354289909,1740394236332,-500.0,0.00017587,2]
[354289910,1740394236341,-1308.37,0.00017587,2]
[354289911,1740394236350,-500.0,0.00017587,2]
[354289912,1740394236359,-583.9,0.00017587,2]
[354289913,1740394236368,-581.36,0.00017587,2]
[354289914,1740394236377,-2354.29,0.00017587,2]
[354289915,1740394236386,-555.20484646,0.00017587,2]
[354289916,1740394236395,-500.0,0.00017587,2]
[354289917,1740394236404,-657.55,0.00017587,2]
[354289918,1740394236413,-723.13,0.00017587,2]
[354289919,1740394236422,-3258.84,0.00017587,2]
[354289920,1740394236431,-500.0,0.00017587,2]
[354289921,1740394236441,-1008.36,0.00017589,2]
[354289922,1740394236450,-720.88456662,0.00017591,2]
[354289923,1740394236459,-2000.0,0.000176,2]
[354289924,1740394236468,-2000.0,0.000176,2]
[354289925,1740394236477,-2000.0,0.000176,2]
[354289926,1740394236486,-2000.0,0.000176,2]
[354289927,1740394236495,-2000.0,0.000176,2]
[354289928,1740394236503,-2000.0,0.000176,2]
[354289929,1740394236514,-5851.5772,0.00017653,2]
[354289930,1740394236523,-1268.62,0.00017668,2]
[354289931,1740394236531,-1024.11,0.00017668,2]
[354289932,1740394236540,-789.22,0.00017668,2]
[354289933,1740394236549,-723.13,0.00017669,2]
[354289934,1740394236559,-3258.84,0.00017669,2]
[354289935,1740394236568,-500.0,0.0001767,2]
[354289936,1740394236577,-1308.37,0.0001767,2]
[354289937,1740394236586,-500.0,0.0001767,2]
[354289938,1740394236595,-583.9,0.0001767,2]
[354289939,1740394236604,-581.36,0.0001767,2]
[354289940,1740394236613,-2354.29,0.0001767,2]
[354289941,1740394236623,-500.0,0.0001767,2]
[354289942,1740394236632,-657.55,0.0001767,2]
[354289943,1740394236641,-500.0,0.0001767,2]
[354289944,1740394236650,-345.11914894,0.00017699,2]
[354289945,1740394236659,-153.0,0.00017748,2]
[354289946,1740394236803,-153.0,0.00017748,2]
[354289947,1740394236812,-153.0,0.00017748,2]
[354289948,1740394236821,-153.0,0.00017748,2]
[354289949,1740394236830,-153.0,0.00017748,2]
[354289950,1740394236839,-153.0,0.00017748,2]
[354289951,1740394236848,-153.0,0.00017748,2]
[354289952,1740394236857,-153.0,0.00017748,2]
[354289953,1740394236867,-153.0,0.00017748,2]
[354289954,1740394236875,-153.0,0.00017748,2]
[354289955,1740394236884,-153.0,0.00017748,2]
[354289956,1740394236894,-153.0,0.00017748,2]